bitfinex-derivatives/quotes_BTCF0:USTF0_20241224
["timestamp","ask_amount","ask_price","bid_price","bid_amount"]
[1735051345448,0.3608,97198.0,97185.0,0.3605]
[1735051345651,0.3608,97193.0,97185.0,0.3605]
[1735051345845,0.051499,97191.0,97187.0,0.0515]
[1735051346251,0.3608,97192.0,97185.0,0.3605]
[1735051346252,0.051501,97186.0,97185.0,0.3605]
[1735051347945,0.051501,97186.0,97185.0,0.3615]
[1735051348452,0.054501,97186.0,97185.0,0.3615]
[1735051348655,0.06464348,97186.0,97185.0,0.3615]
[1735051348957,0.06464348,97186.0,97162.0,0.3608]
[1735051348958,0.01314248,97186.0,97162.0,0.412314]
[1735051349152,0.051509,97171.0,97162.0,0.412314]
[1735051349945,0.01614248,97186.0,97185.0,0.051502]
[1735051350155,0.006,97186.0,97185.0,0.051502]
[1735051350363,0.051502,97184.0,97182.0,0.3608]
[1735051352365,0.052502,97184.0,97182.0,0.3608]
[1735051352651,0.051502,97184.0,97182.0,0.3608]
[1735051353758,0.051502,97184.0,97182.0,0.3618]
[1735051353959,0.051502,97184.0,97182.0,0.001]
[1735051354352,0.051502,97184.0,97162.0,0.051514]
[1735051354547,0.051511,97168.0,97162.0,0.051514]
[1735051354860,0.051512,97167.0,97162.0,0.051514]
[1735051355051,0.3608,97177.0,97160.0,0.00154369]
[1735051355252,0.3608,97177.0,97168.0,0.3608]
[1735051355452,0.05151,97170.0,97168.0,0.3608]
[1735051356460,0.00060001,97177.0,97168.0,0.3608]
[1735051356659,0.051503,97183.0,97177.0,0.051506]
[1735051356859,0.36132001,97187.0,97181.0,0.051504]
[1735051357063,0.3608,97187.0,97184.0,0.051502]
[1735051357464,0.051499,97190.0,97184.0,0.3608]
[1735051357660,0.00986249,97192.0,97186.0,0.051501]
[1735051357967,0.52222001,97197.0,97186.0,0.051501]
[1735051358156,0.5217,97197.0,97184.0,0.3614]
[1735051358356,0.006,97187.0,97184.0,0.3608]
[1735051358764,0.0515,97190.0,97186.0,0.001]
[1735051359267,0.002,97187.0,97184.0,0.36148]
[1735051359463,0.053501,97187.0,97184.0,0.3608]
[1735051359854,0.051501,97187.0,97184.0,0.3608]
[1735051360261,0.003,97190.0,97184.0,0.3608]
[1735051360459,0.003,97190.0,97189.0,0.0515]
[1735051360656,0.051496,97196.0,97189.0,0.0515]
[1735051360860,0.01019732,97197.0,97192.0,0.3608]
[1735051361168,0.2,97200.0,97192.0,0.3608]
[1735051361370,0.2,97200.0,97198.0,0.051495]
[1735051362957,0.36132001,97230.0,97215.0,0.051485]
[1735051363162,0.051482,97222.0,97220.0,0.3608]
[1735051364160,0.37088389,97230.0,97220.0,0.3608]
[1735051364366,0.005,97222.0,97220.0,0.413283]
[1735051365374,0.051481,97224.0,97220.0,0.413283]
[1735051365866,0.4278819,97230.0,97224.0,0.051481]
[1735051366063,0.051481,97225.0,97220.0,0.3624]
[1735051366262,0.005,97222.0,97220.0,0.3628]
[1735051366471,0.056483,97222.0,97220.0,0.3628]
[1735051366870,0.051483,97222.0,97220.0,0.3608]
[1735051367067,0.005,97222.0,97220.0,0.413283]
[1735051367371,0.056482,97222.0,97220.0,0.3618]
[1735051367667,0.056482,97222.0,97200.0,0.00154322]
[1735051367668,0.3,97222.0,97200.0,0.00154322]
[1735051367972,0.051493,97201.0,97200.0,0.00154322]
[1735051370464,0.412293,97201.0,97200.0,0.00254322]
[1735051370866,0.412293,97201.0,97200.0,0.001]
[1735051372064,0.0515,97189.0,97181.0,0.3608]
[1735051372476,0.10193442,97200.0,97181.0,0.3608]
[1735051372767,0.3608,97182.0,97171.0,0.36144]
[1735051372967,0.27063442,97181.0,97171.0,0.3608]
[1735051373168,0.43103442,97181.0,97171.0,0.3608]
[1735051373565,0.051508,97173.0,97167.0,0.3608]
[1735051373963,0.051507,97176.0,97169.0,0.05151]
[1735051374159,0.051507,97176.0,97171.0,0.002]
[1735051374565,0.051507,97176.0,97169.0,0.05151]
[1735051374776,0.43155443,97181.0,97167.0,0.001]
[1735051374961,0.051508,97174.0,97167.0,0.001]
[1735051375579,0.051508,97174.0,97168.0,0.051511]
[1735051375968,0.10193442,97180.0,97171.0,0.001]
[1735051376169,0.17862445,97181.0,97175.0,0.3608]
[1735051376363,0.17862445,97181.0,97178.0,0.051505]
[1735051377176,0.17862445,97181.0,97175.0,0.3608]
[1735051377376,0.18062445,97181.0,97175.0,0.3608]
[1735051377771,0.18062445,97181.0,97178.0,0.001]
[1735051377973,0.17962445,97181.0,97178.0,0.001]
[1735051378178,0.051504,97180.0,97178.0,0.001]
[1735051378376,0.3608,97179.0,97178.0,0.001]
[1735051379170,0.3608,97179.0,97175.0,0.001]
[1735051379366,0.051506,97177.0,97175.0,0.001]
[1735051379772,0.00992445,97181.0,97180.0,0.051504]
[1735051379972,0.46273442,97190.0,97178.0,0.001]
[1735051380271,0.004,97179.0,97178.0,0.052505]
[1735051380670,0.46273442,97190.0,97174.0,0.3608]
[1735051380671,0.002,97177.0,97174.0,0.3608]
[1735051380887,0.002,97177.0,97175.0,0.051507]
[1735051382288,0.01009436,97178.0,97177.0,0.051506]
[1735051382578,0.0515,97188.0,97183.0,0.051503]
[1735051382779,0.0515,97188.0,97183.0,0.412303]
[1735051382980,0.0515,97188.0,97183.0,0.3608]
[1735051383695,0.0515,97188.0,97187.0,0.051501]
[1735051383883,0.051501,97186.0,97183.0,0.412303]
[1735051384181,0.051501,97186.0,97183.0,0.3608]
[1735051384482,0.3608,97198.0,97183.0,0.3608]
[1735051384673,0.37097257,97198.0,97186.0,0.051501]
[1735051384874,0.051498,97192.0,97186.0,0.051501]
[1735051385885,0.051499,97191.0,97186.0,0.052501]
[1735051386582,0.051498,97193.0,97186.0,0.051501]
[1735051386796,0.051498,97193.0,97188.0,0.0515]
[1735051387080,0.051498,97192.0,97188.0,0.0515]
[1735051387280,0.052498,97192.0,97188.0,0.0515]
[1735051387669,0.37149258,97198.0,97191.0,0.051499]
[1735051387874,0.37149258,97198.0,97186.0,0.001]
[1735051387875,0.001,97193.0,97186.0,0.001]
[1735051388186,0.001,97193.0,97192.0,0.412298]
[1735051388375,0.18431769,97206.0,97201.0,0.051493]
[1735051388583,0.17727645,97202.0,97201.0,0.412293]
[1735051389578,0.01027645,97202.0,97201.0,0.413293]
[1735051389785,0.15342242,97211.0,97201.0,0.3618]
[1735051389974,0.15342242,97211.0,97209.0,0.3608]
[1735051390176,0.051488,97211.0,97209.0,0.3608]
[1735051390483,0.06165865,97211.0,97209.0,0.3608]
[1735051390879,0.01017065,97211.0,97210.0,0.051489]
[1735051391178,0.004,97211.0,97210.0,0.051489]
[1735051391573,0.051489,97210.0,97209.0,0.3608]
[1735051391987,0.051486,97216.0,97210.0,0.051489]
[1735051392184,0.005,97211.0,97210.0,0.051489]
[1735051392385,0.006,97211.0,97210.0,0.051489]
[1735051392776,0.006,97211.0,97210.0,0.217289]
[1735051392975,0.005,97211.0,97210.0,0.217289]
[1735051393489,0.001,97216.0,97210.0,0.217289]
[1735051393682,0.001,97216.0,97215.0,0.051486]
[1735051394581,0.001,97211.0,97210.0,0.217289]
[1735051395486,0.007,97216.0,97215.0,0.051486]
[1735051396283,0.005,97216.0,97215.0,0.051486]
[1735051396785,0.051487,97213.0,97212.0,0.3608]
[1735051397880,0.055487,97213.0,97212.0,0.3608]
[1735051398078,0.055487,97213.0,97203.0,0.0006]
[1735051398079,0.051492,97204.0,97203.0,0.0006]
[1735051398273,0.051495,97197.0,97196.0,0.3608]
[1735051398474,0.051495,97198.0,97196.0,0.3608]
[1735051399083,0.051495,97198.0,97196.0,0.412296]
[1735051399275,0.051492,97203.0,97198.0,0.051495]
[1735051399480,0.051492,97203.0,97196.0,0.3638]
[1735051399785,0.3296,97215.0,97196.0,0.3668]
[1735051399977,0.051495,97198.0,97196.0,0.3668]
[1735051400177,0.051495,97198.0,97196.0,0.3638]
[1735051400374,0.051495,97198.0,97196.0,0.3668]
[1735051400776,0.051495,97198.0,97196.0,0.3638]
[1735051400977,0.051495,97198.0,97196.0,0.3628]
[1735051401177,0.051495,97198.0,97196.0,0.3658]
[1735051401385,0.051495,97198.0,97196.0,0.3638]
[1735051401784,0.051495,97198.0,97196.0,0.3608]
[1735051401984,0.051495,97198.0,97196.0,0.3618]
[1735051403077,0.0618431,97198.0,97196.0,0.3618]
[1735051403686,0.051499,97190.0,97185.0,3.70708]
[1735051403984,0.412301,97186.0,97185.0,2.8903706]
[1735051404384,0.52782001,97197.0,97185.0,2.8903706]
[1735051404579,0.5273,97197.0,97185.0,2.8903706]
[1735051404786,0.18431769,97196.0,97185.0,2.8903706]
[1735051404981,0.051501,97187.0,97185.0,2.8903706]
[1735051406586,0.053501,97187.0,97185.0,2.8903706]
[1735051406975,0.1663,97186.0,97185.0,2.8903706]
[1735051407780,0.002,97187.0,97185.0,2.8903706]
[1735051407981,0.002,97187.0,97185.0,2.9418726]
[1735051408378,0.002,97187.0,97186.0,0.1676]
[1735051408980,0.15342842,97200.0,97192.0,0.051498]
[1735051409184,0.051495,97197.0,97196.0,0.3608]
[1735051411982,0.051495,97197.0,97196.0,0.3618]
[1735051413485,0.01019027,97200.0,97196.0,0.3618]
[1735051413486,0.01019027,97200.0,97199.0,0.051494]
[1735051413800,0.051493,97201.0,97199.0,0.051494]
[1735051415294,0.051493,97201.0,97199.0,0.052494]
[1735051416084,0.051493,97201.0,97199.0,0.051494]
[1735051417891,0.051493,97201.0,97199.0,0.052494]
[1735051418091,0.051493,97201.0,97199.0,0.001]
[1735051418393,0.051501,97186.0,97185.0,2.8903706]
[1735051420288,0.175,97191.0,97187.0,0.051501]
[1735051420489,0.18431769,97195.0,97194.0,0.051497]
[1735051420791,0.23581369,97197.0,97194.0,0.412297]
[1735051421098,0.18431769,97197.0,97195.0,0.051496]
[1735051421984,0.00987291,97199.0,97194.0,0.3618]
[1735051422187,0.051493,97202.0,97199.0,0.051494]
[1735051423490,0.051494,97201.0,97199.0,0.051494]
[1735051425688,0.01026046,97204.0,97202.0,0.051493]
[1735051425899,0.051488,97211.0,97203.0,0.3608]
[1735051426208,0.35615159,97208.0,97206.0,0.05149]
[1735051426401,0.01027159,97208.0,97206.0,0.05149]
[1735051426595,0.051488,97211.0,97203.0,0.3608]
[1735051427694,0.051489,97210.0,97209.0,0.051489]
[1735051427895,0.051492,97205.0,97203.0,0.3608]
[1735051430601,0.051492,97205.0,97204.0,0.051492]
[1735051431597,0.051492,97205.0,97203.0,0.3608]
[1735051431903,0.052492,97205.0,97203.0,0.3608]
[1735051432999,0.001,97205.0,97204.0,2.8903706]
[1735051433402,0.11214833,97213.0,97205.0,0.051491]
[1735051433795,0.05149,97207.0,97205.0,0.051491]
[1735051434101,0.052491,97205.0,97204.0,2.8909706]
[1735051434301,0.052491,97205.0,97204.0,2.8903706]
[1735051434806,0.052491,97205.0,97204.0,1.27320503]
[1735051435102,0.051491,97205.0,97204.0,0.20740503]
[1735051435691,0.051491,97205.0,97204.0,0.17767978]
[1735051435896,0.412291,97205.0,97204.0,0.17767978]
[1735051436496,0.413291,97205.0,97204.0,0.11074519]
[1735051436696,0.051502,97185.0,97184.0,0.3608]
[1735051437914,0.051502,97185.0,97184.0,0.3648]
[1735051438122,0.051502,97185.0,97184.0,0.3678]
[1735051440210,0.0616191,97185.0,97184.0,0.007]
[1735051441107,0.0616191,97185.0,97184.0,0.004]
[1735051441308,0.0616191,97185.0,97184.0,0.007]
[1735051441516,0.0616191,97185.0,97184.0,0.003]
[1735051443310,0.0616191,97185.0,97179.0,0.00238153]
[1735051443311,0.051504,97182.0,97179.0,0.00238153]
[1735051444212,0.3608,97194.0,97179.0,0.00238153]
[1735051444419,0.18488712,97196.0,97192.0,0.051498]
[1735051444608,0.11802397,97208.0,97190.0,0.3608]
[1735051444810,0.11802397,97208.0,97207.0,0.3608]
[1735051445514,0.12816957,97208.0,97207.0,0.3608]
[1735051445707,0.12816957,97208.0,97207.0,0.5356]
[1735051446119,0.33812169,97236.0,97207.0,0.5356]
[1735051446120,0.10193442,97230.0,97207.0,0.5356]
[1735051446309,0.10193442,97230.0,97229.0,0.3608]
[1735051446509,0.051478,97231.0,97229.0,0.3608]
[1735051447019,0.06167217,97231.0,97229.0,0.3608]
[1735051447915,0.06767217,97231.0,97229.0,0.3618]
[1735051448316,0.01619417,97231.0,97229.0,0.3618]
[1735051448709,0.01619417,97231.0,97230.0,0.16]
[1735051449312,0.006,97231.0,97230.0,0.16]
[1735051449514,0.3608,97244.0,97230.0,0.16]
[1735051449719,0.37114333,97244.0,97231.0,0.051477]
[1735051450320,0.01034333,97244.0,97237.0,0.3608]
[1735051450523,0.10193442,97247.0,97237.0,0.3608]
[1735051450825,0.051474,97238.0,97237.0,0.3608]
[1735051452128,0.002,97244.0,97230.0,0.13295239]
[1735051452417,0.002,97244.0,97117.0,0.051537]
[1735051452418,0.051485,97217.0,97204.0,0.3608]
[1735051452618,0.05149,97208.0,97196.0,0.3608]
[1735051452822,0.3608,97210.0,97191.0,0.3608]
[1735051453012,0.3608,97199.0,97191.0,0.3608]
[1735051453419,0.051503,97184.0,97173.0,0.3608]
[1735051453914,0.10253443,97210.0,97182.0,0.3608]
[1735051454227,0.11204118,97210.0,97198.0,0.3608]
[1735051454526,0.01010676,97210.0,97198.0,0.3608]
[1735051454722,0.3608,97216.0,97200.0,0.10193442]
[1735051454927,0.3608,97216.0,97208.0,0.3608]
[1735051455122,0.41228,97227.0,97208.0,0.3608]
[1735051455325,0.051481,97226.0,97208.0,0.3608]
[1735051455519,0.3608,97227.0,97209.0,0.1676]
[1735051455719,0.051484,97218.0,97209.0,0.1676]
[1735051456229,0.01227835,97227.0,97223.0,0.051481]
[1735051456427,0.01227835,97227.0,97226.0,0.3608]
[1735051456849,0.01027835,97227.0,97226.0,0.3608]
[1735051457131,0.051475,97237.0,97226.0,0.3608]
[1735051457440,0.002,97227.0,97226.0,0.3608]
[1735051458016,0.051481,97224.0,97223.0,0.001]
[1735051458226,0.412281,97224.0,97223.0,0.001]
[1735051459022,0.051486,97215.0,97202.0,0.3608]
[1735051459329,0.051488,97212.0,97202.0,0.3608]
[1735051459524,0.051488,97211.0,97202.0,0.3608]
[1735051461823,0.051492,97205.0,97202.0,0.3608]
[1735051462718,0.051492,97204.0,97202.0,0.3608]
[1735051464826,0.3618,97205.0,97192.0,0.00052]
[1735051465029,0.3608,97193.0,97184.0,0.00083804]
[1735051465231,0.051501,97186.0,97184.0,0.00083804]
[1735051465733,0.10193442,97194.0,97184.0,0.00083804]
[1735051465935,0.051504,97180.0,97179.0,0.00052]
[1735051466224,0.40193442,97194.0,97163.0,0.15392761]
[1735051466225,0.051513,97164.0,97163.0,0.15392761]
[1735051466430,0.10193442,97173.0,97163.0,0.09183759]
[1735051466619,0.051512,97165.0,97163.0,0.09183759]
[1735051466820,0.051512,97165.0,97152.0,0.1739]
[1735051467020,0.051513,97163.0,97152.0,0.1739]
[1735051467224,0.10193442,97162.0,97152.0,0.1739]
[1735051467527,0.051519,97153.0,97152.0,0.1739]
[1735051468029,0.051519,97153.0,97152.0,0.5347]
[1735051468623,0.051519,97153.0,97152.0,0.5338]
[1735051469020,0.051519,97153.0,97152.0,0.5348]
[1735051469429,0.052519,97153.0,97152.0,0.5348]
[1735051469727,0.053519,97153.0,97152.0,0.5338]
[1735051470328,0.051506,97177.0,97152.0,0.5338]
[1735051470526,0.54511022,97180.0,97178.0,0.051505]
[1735051470527,0.18431022,97180.0,97178.0,0.051505]
[1735051470728,0.051494,97199.0,97179.0,0.3284]
[1735051470923,0.10193442,97200.0,97190.0,0.3608]
[1735051471121,0.10193442,97200.0,97179.0,0.3284]
[1735051471122,0.051498,97191.0,97179.0,0.1663]
[1735051471327,0.051501,97186.0,97179.0,0.1663]
[1735051471630,0.051504,97180.0,97176.0,0.3608]
[1735051471931,0.051504,97180.0,97171.0,0.3608]
[1735051471932,0.051509,97171.0,97170.0,0.00154383]
[1735051472133,0.412309,97171.0,97170.0,0.00154383]
[1735051472330,0.051515,97158.0,97157.0,0.01265596]
[1735051472531,0.051515,97158.0,97135.0,0.051527]
[1735051472723,0.10193442,97170.0,97157.0,0.3608]
[1735051472926,0.3608,97187.0,97165.0,0.3608]
[1735051473134,0.3608,97187.0,97180.0,0.3608]
[1735051473429,0.10193442,97190.0,97180.0,0.3608]
[1735051473931,0.01269278,97191.0,97181.0,0.1698]
[1735051474127,0.10193442,97210.0,97191.0,0.051497]
[1735051474432,0.15342142,97210.0,97191.0,0.051497]
[1735051474627,0.3732909,97206.0,97191.0,0.051497]
[1735051475334,0.3608,97216.0,97198.0,0.3608]
[1735051475524,0.10193442,97220.0,97209.0,0.3608]
[1735051475927,0.051487,97210.0,97209.0,0.3608]
[1735051476834,0.01250614,97220.0,97209.0,0.3608]
[1735051477134,0.10193442,97230.0,97219.0,0.3608]
[1735051477335,0.10193442,97230.0,97220.0,0.051481]
[1735051477833,0.11455007,97230.0,97219.0,0.3608]
[1735051478432,0.051481,97221.0,97219.0,0.3608]
[1735051478735,0.051481,97221.0,97220.0,0.001]
[1735051478934,0.16602607,97230.0,97220.0,0.001]
[1735051479126,0.051477,97228.0,97219.0,0.3618]
[1735051479531,0.051477,97228.0,97219.0,0.3608]
[1735051479737,0.051477,97228.0,97227.0,0.3608]
[1735051480036,0.01261565,97230.0,97227.0,0.3608]
[1735051480260,0.34596,97236.0,97227.0,0.3608]
[1735051480538,0.3608,97244.0,97235.0,0.3608]
[1735051480727,0.10193442,97250.0,97235.0,0.412273]
[1735051480931,0.10193442,97250.0,97236.0,0.1745]
[1735051481240,0.11439653,97250.0,97236.0,0.1745]
[1735051481434,0.01246211,97250.0,97236.0,0.1745]
[1735051481741,0.10193442,97250.0,97237.0,0.051471]
[1735051481941,0.051462,97256.0,97243.0,0.3608]
[1735051482143,0.10193442,97250.0,97243.0,0.3608]
[1735051482540,0.051465,97244.0,97243.0,0.3608]
[1735051482841,0.051467,97242.0,97236.0,0.3618]
[1735051483032,0.051467,97242.0,97236.0,0.3608]
[1735051484540,0.051471,97234.0,97225.0,0.3608]
[1735051484745,0.051472,97232.0,97225.0,0.3608]
[1735051485046,0.10193442,97240.0,97225.0,0.3608]
[1735051485232,0.05147,97236.0,97225.0,0.3608]
[1735051485843,0.051471,97235.0,97225.0,0.3618]
[1735051486138,0.051475,97227.0,97225.0,0.001]
[1735051488638,0.06409048,97227.0,97225.0,0.001]
[1735051489245,0.01261548,97227.0,97225.0,0.001]
[1735051489438,0.05147,97235.0,97225.0,0.001]
[1735051490346,0.05147,97235.0,97222.0,0.1647]
[1735051490545,0.01269615,97235.0,97228.0,0.3608]
[1735051490744,0.3608,97241.0,97228.0,0.3608]
[1735051491049,0.10193442,97240.0,97228.0,0.3608]
[1735051491344,0.051473,97229.0,97228.0,0.3608]
[1735051491534,0.37319038,97241.0,97228.0,0.3608]
[1735051491937,0.36152,97253.0,97236.0,0.3608]
[1735051492142,0.10193442,97250.0,97245.0,0.3608]
[1735051492351,0.38624999,97255.0,97237.0,0.1628]
[1735051492551,0.3608,97247.0,97229.0,0.1703]
[1735051492740,0.10193442,97250.0,97229.0,0.1703]
[1735051493346,0.051463,97248.0,97229.0,0.1703]
[1735051493549,0.051468,97239.0,97229.0,0.1703]
[1735051493748,0.051469,97238.0,97229.0,0.1703]
[1735051494246,0.3608,97247.0,97225.0,0.36132]
[1735051494440,0.3608,97247.0,97225.0,0.3608]
[1735051494743,0.10193442,97240.0,97210.0,0.10193442]
[1735051494943,0.051477,97222.0,97206.0,0.396185]
[1735051495148,0.051477,97222.0,97210.0,0.10193442]
[1735051495350,0.3608,97236.0,97210.0,0.10193442]
[1735051495541,0.3608,97236.0,97206.0,0.3447]
[1735051495542,0.051473,97230.0,97220.0,0.10193442]
[1735051495746,0.3608,97236.0,97212.0,0.051482]
[1735051495935,0.051476,97225.0,97212.0,0.051482]
[1735051496139,0.37338577,97236.0,97212.0,0.051482]
[1735051496340,0.051477,97224.0,97212.0,0.051482]
[1735051496748,0.37338577,97236.0,97206.0,0.3447]
[1735051496951,0.051472,97232.0,97210.0,0.10193442]
[1735051497152,0.051472,97232.0,97226.0,0.3608]
[1735051498547,0.051473,97231.0,97226.0,0.3608]
[1735051498965,0.051473,97230.0,97226.0,0.3608]
[1735051499154,0.051474,97228.0,97226.0,0.3608]
[1735051499452,0.05147,97235.0,97226.0,0.3608]
[1735051499652,0.3608,97237.0,97227.0,0.051474]
[1735051500452,0.3608,97237.0,97233.0,0.051471]
[1735051500660,0.051457,97260.0,97234.0,0.524]
[1735051500847,0.17114348,97271.0,97251.0,0.7216]
[1735051501043,0.10193442,97270.0,97259.0,0.3608]
[1735051501352,0.051465,97246.0,97244.0,0.3608]
[1735051501556,0.051468,97239.0,97235.0,0.5373]
[1735051501746,0.051468,97239.0,97235.0,0.5367]
[1735051502052,0.051464,97247.0,97238.0,0.051469]
[1735051502255,0.3608,97253.0,97242.0,0.051467]
[1735051502851,0.10193442,97252.0,97242.0,0.051467]
[1735051503056,0.051465,97246.0,97235.0,0.5367]
[1735051503451,0.051466,97245.0,97235.0,0.5367]
[1735051503651,0.051466,97245.0,97235.0,0.58817]
[1735051503842,0.10193442,97252.0,97235.0,0.5367]
[1735051504051,0.051466,97252.0,97235.0,0.5367]
[1735051504248,0.051463,97258.0,97248.0,0.051468]
[1735051504449,0.051463,97258.0,97252.0,0.3608]
[1735051505958,0.3608,97263.0,97252.0,0.3608]
[1735051506456,0.051463,97258.0,97252.0,0.3608]
[1735051506659,0.10193442,97262.0,97252.0,0.3608]
[1735051507049,0.051466,97253.0,97252.0,0.3608]
[1735051509261,0.051475,97236.0,97234.0,0.36132]
[1735051509452,0.051475,97236.0,97234.0,0.3608]
[1735051509962,0.3608,97235.0,97220.0,0.23977315]
[1735051510266,0.051482,97222.0,97220.0,0.20614798]
[1735051510461,0.051491,97205.0,97203.0,0.1794638]
[1735051511558,0.00321901,97204.0,97203.0,0.1794638]
[1735051511860,0.00321901,97204.0,97203.0,0.001]
[1735051513157,0.00321901,97204.0,97190.0,0.36132]
[1735051513158,0.00321901,97204.0,97198.0,0.3608]
[1735051513360,0.00321901,97203.0,97198.0,0.3608]
[1735051513561,0.00321901,97202.0,97198.0,0.3608]
[1735051513751,0.00321901,97201.0,97190.0,0.3608]
[1735051513952,0.00321901,97200.0,97190.0,0.3608]
[1735051514359,0.051492,97205.0,97190.0,0.3608]
[1735051514764,0.051492,97205.0,97199.0,0.0025433]
[1735051515554,0.3608,97207.0,97199.0,0.001]
[1735051515752,0.3608,97207.0,97179.0,0.3608]
[1735051515948,0.051501,97187.0,97179.0,0.3608]
[1735051516655,0.051503,97183.0,97179.0,0.3608]
[1735051517052,0.051503,97183.0,97179.0,0.3658]
[1735051517358,0.051504,97182.0,97179.0,0.3658]
[1735051517660,0.051506,97177.0,97170.0,0.3608]
[1735051518171,0.051507,97176.0,97170.0,0.3608]
[1735051518954,0.1639,97187.0,97174.0,0.051508]
[1735051519152,0.3608,97188.0,97178.0,0.3608]
[1735051519461,0.051502,97185.0,97179.0,0.004]
[1735051520162,0.051502,97185.0,97178.0,0.3608]
[1735051520553,0.051502,97185.0,97170.0,0.3608]
[1735051520554,0.48254531,97190.0,97170.0,0.3608]
[1735051520755,0.3608,97171.0,97157.0,0.3608]
[1735051521047,0.051515,97160.0,97157.0,0.3608]
[1735051521659,0.3608,97171.0,97157.0,0.3608]
[1735051521864,0.051507,97176.0,97166.0,0.3608]
[1735051522058,0.07131393,97176.0,97166.0,0.3608]
[1735051522367,0.07131393,97176.0,97170.0,0.001]
[1735051523062,0.07131393,97176.0,97166.0,0.3608]
[1735051523263,0.07131393,97176.0,97166.0,0.3618]
[1735051523459,0.051511,97168.0,97166.0,0.3618]
[1735051524265,0.12214986,97180.0,97166.0,0.3618]
[1735051524468,0.051507,97175.0,97166.0,0.3618]
[1735051524657,0.12214986,97180.0,97166.0,0.3618]
[1735051524861,0.051511,97168.0,97166.0,0.3618]
[1735051525163,0.051511,97168.0,97166.0,0.001]
[1735051525366,0.051511,97168.0,97143.0,0.3608]
[1735051525573,0.051522,97148.0,97143.0,0.3608]
[1735051526559,0.051522,97148.0,97121.0,0.389035]
[1735051526756,0.051522,97148.0,97128.0,0.3608]
[1735051526960,0.051531,97129.0,97128.0,0.3608]
[1735051527868,0.10193442,97138.0,97121.0,0.171]
[1735051527869,0.051535,97122.0,97121.0,0.171]
[1735051528572,0.051535,97122.0,97120.0,0.36132]
[1735051528780,0.051535,97122.0,97120.0,0.3608]
[1735051529076,0.051535,97122.0,97109.0,0.1709]
[1735051529077,0.46273442,97131.0,97109.0,0.1709]
[1735051529369,0.20386884,97119.0,97108.0,0.3608]
[1735051529576,0.20386884,97119.0,97100.0,0.1]
[1735051529869,0.051544,97106.0,97100.0,0.1]
[1735051530065,0.05154,97113.0,97100.0,0.151547]
[1735051530262,0.05154,97113.0,97107.0,0.3608]
[1735051530673,0.05154,97113.0,97100.0,0.151547]
[1735051531169,0.05154,97113.0,97102.0,0.051546]
[1735051531575,0.051545,97104.0,97100.0,0.1]
[1735051531874,0.3608,97114.0,97100.0,0.151547]
[1735051531875,0.05154,97113.0,97100.0,0.151547]
[1735051532060,0.051536,97120.0,97112.0,0.05154]
[1735051532263,0.3608,97134.0,97117.0,0.3608]
[1735051532463,0.051521,97149.0,97134.0,0.051528]
[1735051532661,0.10193442,97140.0,97134.0,0.051528]
[1735051532867,0.10193442,97140.0,97133.0,0.3608]
[1735051533071,0.051526,97139.0,97133.0,0.3608]
[1735051533267,0.10193442,97140.0,97134.0,0.051529]
[1735051533569,0.051522,97147.0,97133.0,0.3608]
[1735051533570,0.051522,97147.0,97138.0,0.051527]
[1735051534269,0.003,97139.0,97133.0,0.3608]
[1735051534670,0.051529,97135.0,97133.0,0.3608]
[1735051534968,0.003,97139.0,97133.0,0.3608]
[1735051535273,0.054527,97139.0,97133.0,0.3608]
[1735051535671,0.054527,97139.0,97133.0,0.3618]
[1735051535864,0.07387374,97139.0,97133.0,0.3618]
[1735051536265,0.07087374,97139.0,97133.0,0.3608]
[1735051536459,0.01934674,97139.0,97133.0,0.3628]
[1735051536672,0.051527,97137.0,97133.0,0.3628]
[1735051536875,0.3638,97147.0,97133.0,0.3628]
[1735051536876,0.051529,97134.0,97133.0,0.3628]
[1735051537575,0.412329,97134.0,97133.0,0.002]
[1735051538165,0.051529,97134.0,97133.0,0.002]
[1735051538565,0.07091344,97134.0,97133.0,0.002]
[1735051538966,0.051533,97126.0,97125.0,0.3608]
[1735051539567,0.051539,97115.0,97100.0,0.512567]
[1735051539767,0.051539,97115.0,97100.0,0.1]
[1735051539975,0.051539,97115.0,97106.0,0.3608]
[1735051540368,0.051536,97122.0,97114.0,0.3608]
[1735051540564,0.051536,97122.0,97115.0,0.051539]
[1735051541363,0.051536,97121.0,97114.0,0.3608]
[1735051541571,0.1667,97133.0,97114.0,0.3608]
[1735051541779,0.051539,97116.0,97114.0,0.3608]
[1735051542678,0.051539,97116.0,97115.0,0.003]
[1735051542870,0.412339,97116.0,97115.0,0.005]
[1735051543070,0.43235602,97116.0,97115.0,0.005]
[1735051543376,0.43235602,97116.0,97114.0,0.003]
[1735051543567,0.43235602,97116.0,97114.0,0.006]
[1735051543971,0.051546,97101.0,97100.0,0.1]
[1735051544575,0.412346,97101.0,97100.0,0.1]
[1735051544785,0.051546,97101.0,97100.0,0.1]
[1735051546080,0.3608,97106.0,97100.0,0.1]
[1735051546468,0.3608,97106.0,97100.0,0.101]
[1735051546970,0.053546,97101.0,97100.0,0.101]
[1735051547380,0.051546,97101.0,97100.0,0.101]
[1735051547573,0.051557,97082.0,97080.0,0.3608]
[1735051547976,0.051559,97077.0,97076.0,0.1638]
[1735051548375,0.051562,97072.0,97071.0,0.00206463]
[1735051548573,0.412362,97072.0,97061.0,0.16116]
[1735051548773,0.051567,97062.0,97061.0,0.1606]
[1735051548979,0.15280832,97071.0,97058.0,0.29971644]
[1735051549286,0.051569,97059.0,97058.0,0.29971644]
[1735051549676,0.051569,97059.0,97051.0,0.3608]